bitfinex-derivatives/quotes_ETHF0:USTF0_20250126
["timestamp","ask_amount","ask_price","bid_price","bid_amount"]
[1737884910620,0.00454463,3302.3,3302.2,43.49888555]
[1737884911121,0.6056,3303.0,3302.6,0.60566]
[1737884911324,0.6056,3303.0,3302.8,2.09314555]
[1737884912419,3.81338,3303.1,3302.8,2.09314555]
[1737884912620,3.2078,3303.1,3302.8,2.69877555]
[1737884912921,3.81338,3303.1,3302.8,2.69877555]
[1737884914224,3.2078,3303.1,3302.8,2.69877555]
[1737884914625,3.2078,3303.1,3302.8,2.09314555]
[1737884914921,3.2078,3303.1,3302.8,2.69876555]
[1737884915512,3.2078,3303.1,3302.9,0.60561]
[1737884918324,3.2078,3303.1,3302.8,2.69876555]
[1737884918820,0.6056,3303.0,3302.8,2.09314555]
[1737884919027,3.8587,3303.0,3302.8,2.09314555]
[1737884919319,3.2078,3303.1,3302.8,2.09314555]
[1737884919527,3.81339,3303.1,3302.8,2.09314555]
[1737884919725,0.60559,3303.0,3302.8,2.09314555]
[1737884921128,3.81339,3303.1,3302.8,2.09314555]
[1737884921427,0.6056,3303.0,3302.9,0.90829271]
[1737884926437,3.2078,3303.1,3302.9,0.90829271]
[1737884927136,3.2078,3303.1,3302.9,1.51389271]
[1737884928342,3.2078,3303.1,3302.9,0.90829271]
[1737884928838,3.2078,3303.1,3302.9,1.51389271]
[1737884929740,3.2078,3303.1,3302.9,0.90829271]
[1737884932137,3.2078,3303.1,3302.9,1.51390271]
[1737884932638,3.2078,3303.1,3302.9,0.90829271]
[1737884933643,3.81338,3303.1,3302.9,0.90829271]
[1737884936841,0.60559,3303.0,3302.9,0.90829271]
[1737884937941,3.2078,3303.1,3302.9,0.90829271]
[1737884938149,3.81339,3303.1,3302.9,0.90829271]
[1737884938343,0.60559,3303.0,3302.9,0.90829271]
[1737884940941,3.2078,3303.1,3302.9,0.90829271]
[1737884941246,3.2078,3303.1,3302.9,4.73839271]
[1737884941445,3.2078,3303.1,3303.0,0.60559]
[1737884942147,3.2078,3303.1,3302.9,4.13279271]
[1737884942644,3.2078,3303.1,3303.0,0.60559]
[1737884942841,0.00454463,3303.2,3302.9,4.73839271]
[1737884943042,0.00454463,3303.2,3303.1,2.09314555]
[1737884943547,0.61010463,3303.2,3303.1,2.09314555]
[1737884947751,0.60558,3303.1,3302.9,0.90829271]
[1737884948048,0.60558,3303.1,3302.9,1.51390271]
[1737884948451,0.60558,3303.1,3302.9,0.90829271]
[1737884949550,0.00454463,3303.2,3302.9,0.90829271]
[1737884949757,3.81339,3303.0,3302.9,0.90829271]
[1737884950250,3.2078,3303.0,3302.9,0.90829271]
[1737884950457,3.2078,3303.0,3302.9,1.51390271]
[1737884951153,3.2078,3303.0,3302.9,0.90829271]
[1737884952457,0.61010463,3303.2,3302.9,0.90829271]
[1737884952658,0.61010463,3303.2,3302.9,1.81658542]
[1737884955447,0.00454463,3303.2,3302.9,1.81658542]
[1737884955653,0.00454463,3303.2,3302.9,2.42218542]
[1737884955851,0.00454463,3303.2,3303.0,0.60559]
[1737884956053,0.00454463,3303.2,3302.9,2.42218542]
[1737884957362,0.61010463,3303.2,3302.9,2.42218542]
[1737884958562,0.00454463,3303.2,3303.0,0.60559]
[1737884958765,0.61010463,3303.2,3302.9,2.42218542]
[1737884959465,0.00454463,3303.2,3303.1,2.09314555]
[1737884959767,0.00454463,3303.2,3303.1,2.69872555]
[1737884967381,0.00454463,3303.2,3303.1,2.09314555]
[1737884968573,0.00454463,3303.2,3303.1,2.69872555]
[1737884969480,0.00454463,3303.2,3303.1,2.09314555]
[1737884971378,0.00454463,3303.2,3303.1,2.69872555]
[1737884973277,0.00454463,3303.2,3303.1,45.5918711]
[1737884973485,6.2289,3304.2,3303.8,0.60544]
[1737884973682,6.2289,3304.2,3304.1,2.09314555]
[1737884975185,6.83428,3304.2,3304.1,2.09314555]
[1737884977483,6.2289,3304.2,3304.1,3.00110838]
[1737884978681,6.83428,3304.2,3304.1,3.00110838]
[1737884979285,6.2289,3304.2,3304.1,3.00110838]
[1737884980386,6.83428,3304.2,3304.1,3.00110838]
[1737884980989,6.2289,3304.2,3304.1,3.00110838]
[1737884981586,6.2289,3304.2,3304.1,3.60649838]
[1737884981787,6.2289,3304.2,3304.1,3.00110838]
[1737884981989,6.2289,3304.2,3304.1,3.90907121]
[1737884982582,6.2289,3304.2,3304.1,4.51446121]
[1737884982783,3.2078,3304.2,3304.1,4.51446121]
[1737884986093,3.2078,3304.2,3304.1,3.90907121]
[1737884986281,3.2078,3304.2,3304.1,4.51446121]
[1737884987993,3.2078,3304.2,3304.1,3.90907121]
[1737884988290,3.2078,3304.2,3304.1,4.51446121]
[1737884988486,0.00454463,3304.5,3304.2,0.60536]
[1737884988688,0.00454463,3304.5,3304.4,2.09314555]
[1737884989084,0.00454463,3304.5,3304.4,5.70418555]
[1737884989285,0.00454463,3304.5,3304.4,5.09884555]
[1737884990302,6.4432,3304.8,3304.4,5.70418555]
[1737884990483,7.04847,3304.8,3304.7,2.09314555]
[1737884992695,7.04847,3304.8,3304.7,3.00094353]
[1737884993101,3.84067,3304.8,3304.7,3.00094353]
[1737884994296,3.2354,3304.8,3304.7,3.00094353]
[1737884996306,3.2354,3304.8,3304.7,3.60622353]
[1737884997500,0.00454463,3305.1,3304.8,0.60526]
[1737884997701,3.18464463,3305.1,3304.8,0.60526]
[1737884998201,3.18464463,3305.1,3304.8,3.81306]
[1737884998908,3.18464463,3305.1,3304.9,3.2378]
[1737885000207,3.18464463,3305.1,3304.9,3.84304]
[1737885000411,3.18464463,3305.1,3305.0,2.09314555]
[1737885001111,3.18464463,3305.1,3305.0,2.69837555]
[1737885001313,0.00454463,3305.1,3305.0,2.69837555]
[1737885002012,0.00454463,3305.1,3305.0,2.09314555]
[1737885002217,0.60975463,3305.1,3305.0,2.09314555]
[1737885002402,0.00454463,3305.1,3305.0,2.09314555]
[1737885002608,0.60975463,3305.1,3305.0,2.09314555]
[1737885003019,0.00454463,3305.1,3305.0,2.09314555]
[1737885003218,0.00454463,3305.1,3305.0,2.69837555]
[1737885003812,0.00454463,3305.1,3305.0,2.09314555]
[1737885004615,0.60975463,3305.1,3305.0,2.09314555]
[1737885005117,0.00454463,3305.1,3305.0,2.09314555]
[1737885006819,0.60975463,3305.1,3305.0,2.09314555]
[1737885008418,0.00454463,3305.1,3305.0,2.09314555]
[1737885008619,0.00454463,3305.1,3305.0,2.69837555]
[1737885008808,0.00454463,3305.1,3305.0,2.09314555]
[1737885009621,0.00454463,3305.1,3305.0,1.97822126]
[1737885009829,0.00454463,3305.1,3305.0,2.58345126]
[1737885010927,0.60975463,3305.1,3305.0,2.58345126]
[1737885011127,0.60975463,3305.1,3305.0,0.98911063]
[1737885013127,0.60975463,3305.1,3305.0,1.97822126]
[1737885013827,0.60975463,3305.1,3305.0,2.08954108]
[1737885014220,0.00454463,3305.1,3305.0,2.08954108]
[1737885014424,0.00454463,3305.1,3305.0,2.69477108]
[1737885017132,0.00454463,3305.1,3305.0,2.08954108]
[1737885018126,0.60975463,3305.1,3305.0,2.08954108]
[1737885018832,0.00454463,3305.1,3305.0,2.08954108]
[1737885019039,0.00454463,3305.1,3305.0,2.69477108]
[1737885025537,3.2078,3305.6,3305.5,0.60514]
[1737885026043,3.2078,3305.6,3305.5,41.40514]
[1737885026435,3.2078,3305.6,3305.3,2.08954108]
[1737885026633,10.17617,3305.9,3305.6,0.60511]
[1737885026833,9.5711,3305.9,3305.8,2.08954108]
[1737885028142,6.3073,3305.9,3305.8,2.69462108]
[1737885029344,0.60502,3306.2,3305.8,2.08954108]
[1737885029640,3.71612,3306.2,3306.1,2.08954108]
[1737885030939,3.71612,3306.2,3305.8,0.90749591]
[1737885030940,0.60506,3305.9,3305.8,2.99703699]
[1737885031845,0.60506,3305.9,3305.8,0.90749591]
[1737885042057,0.60707066,3305.9,3305.8,0.90749591]
[1737885046851,1.59613908,3305.9,3305.8,0.90749591]
[1737885050144,5.99107908,3305.9,3305.1,0.98906842]
[1737885050448,0.60521,3305.1,3305.0,2.9918]
[1737885050749,0.60523,3305.0,3304.9,4.19686842]
[1737885051254,0.60523,3305.0,3304.9,4.80211842]
[1737885051650,0.60523,3305.0,3304.9,3.81305]
[1737885051842,0.60523,3305.0,3304.9,3.2078]
[1737885052849,3.2078,3305.0,3304.7,0.90779798]
[1737885053048,0.60527,3304.8,3304.7,0.90779798]
[1737885056159,5.0,3304.8,3304.1,2.72388849]
[1737885056459,0.60538,3304.2,3304.1,2.72388849]
[1737885061165,3.2078,3304.4,3304.1,4.81396456]
[1737885061366,3.2078,3304.4,3304.3,0.60536]
[1737885061763,3.81314,3304.4,3304.3,3.86096]
[1737885061958,3.2078,3304.4,3304.3,3.86096]
[1737885062159,3.81314,3304.4,3304.3,3.86096]
[1737885062466,3.2078,3304.4,3304.3,3.86096]
[1737885062654,0.60986102,3304.5,3304.3,3.86096]
[1737885064169,0.00452102,3304.5,3304.3,3.86096]
[1737885064370,0.60534,3304.4,3304.3,3.86096]
[1737885065170,0.60534,3304.4,3304.3,3.2556]
[1737885065883,0.60534,3304.4,3304.3,3.86096]
[1737885066377,0.60534,3304.4,3304.3,3.2556]
[1737885066986,0.00452102,3304.5,3304.2,6.2732]
[1737885067186,0.00452102,3304.5,3304.1,5.93168849]
[1737885067379,0.60538,3304.2,3304.1,5.93168849]
[1737885068381,0.60538,3304.2,3304.1,2.72388849]
[1737885072195,3.74958,3304.2,3304.1,2.72388849]
[1737885077595,8.74958,3304.2,3304.1,0.53666604]
[1737885082900,0.60543,3303.9,3303.8,0.00453754]
[1737885083106,5.90330607,3303.9,3303.8,0.00453754]
[1737885083296,10.90330607,3303.9,3303.8,0.00453754]
[1737885083700,0.60559,3303.0,3302.9,1.81658542]
[1737885084500,0.60559,3303.0,3301.8,3.2078]
[1737885084501,0.60569,3302.5,3301.8,3.2078]
[1737885084704,0.6058,3301.9,3301.8,3.03613754]
[1737885085401,0.6058,3301.9,3301.8,0.00453754]
[1737885087497,3.2078,3302.2,3301.8,0.00453754]
[1737885087802,0.60576,3302.1,3301.9,0.6058]
[1737885088109,0.60576,3302.1,3301.8,0.00453754]
[1737885088302,0.60576,3302.1,3301.9,0.6058]
[1737885089007,3.1719,3302.4,3301.8,0.00453754]
[1737885089207,0.60579,3302.0,3301.8,0.61034754]
[1737885089407,0.60579,3302.0,3301.8,0.00453754]
[1737885089706,3.1719,3302.4,3301.8,0.00453754]
[1737885089907,0.60578,3302.0,3301.8,0.61033754]
[1737885090208,0.6058,3301.9,3301.8,0.00453754]
[1737885090706,0.6058,3301.9,3301.8,40.80453754]
[1737885090904,0.6058,3301.9,3301.8,0.00453754]
[1737885092104,0.6058,3301.9,3301.8,7.54e-06]
[1737885092407,5.6058,3301.9,3301.8,7.54e-06]
[1737885095813,6.6158,3301.9,3301.8,7.54e-06]
[1737885099515,9.5963,3301.9,3301.8,7.54e-06]
[1737885100213,8.9905,3301.9,3301.0,3.034]
[1737885100515,0.60594,3301.1,3301.0,3.034]
[1737885102212,2.69601607,3301.1,3301.0,3.034]
[1737885111218,5.90381607,3301.1,3301.0,3.034]
[1737885111720,0.60596,3301.0,3300.9,3.2838]
[1737885112325,0.606,3300.8,3300.7,0.00453754]
[1737885112527,2.69607607,3300.8,3300.7,0.00453754]
[1737885113027,8.94487607,3300.8,3300.7,0.00453754]
[1737885118827,2.69607607,3300.8,3300.7,0.00453754]
[1737885119031,2.69607607,3300.8,3300.7,0.91343565]
[1737885120730,0.606,3300.8,3300.7,0.91343565]
[1737885121421,2.69607607,3300.8,3300.7,0.91343565]
[1737885128935,3.70507607,3300.8,3300.7,0.91343565]
[1737885129142,2.69607607,3300.8,3300.7,0.91343565]
[1737885134145,5.90387607,3300.8,3300.7,0.91343565]
[1737885139142,3.8138,3300.8,3300.7,0.91343565]
[1737885139350,3.8138,3300.8,3300.7,1.51945565]
[1737885139749,0.606,3300.8,3300.7,1.51945565]
[1737885140444,0.606,3300.8,3300.7,0.91343565]
[1737885140949,3.2078,3301.3,3300.7,0.91343565]
[1737885141149,0.60596,3301.0,3300.9,0.60597]
[1737885141541,3.2078,3301.3,3300.9,3.78087]
[1737885141741,0.60596,3301.1,3300.9,3.78087]
[1737885141944,0.60596,3301.0,3300.9,3.78087]
[1737885143148,0.60596,3301.0,3300.9,3.1749]
[1737885157852,0.60594,3301.2,3301.0,0.60595]
[1737885158054,0.60596,3301.1,3300.9,3.78087]
[1737885158553,0.60596,3301.0,3300.9,3.78087]
[1737885158862,3.2078,3301.3,3300.9,3.78087]
[1737885159160,0.60595,3301.1,3300.9,3.78087]
[1737885159761,3.2078,3301.3,3300.9,3.1749]
[1737885159962,3.2078,3301.7,3301.0,2.09007607]
[1737885160164,0.60587,3301.5,3301.4,3.81368]
[1737885160464,0.60587,3301.5,3301.4,3.2078]
[1737885160761,0.60587,3301.5,3301.4,3.81368]
[1737885161365,11.38947607,3302.1,3301.4,3.81368]
[1737885161660,11.38947607,3302.1,3301.5,6.3287]
[1737885161661,0.60586,3301.6,3301.5,6.3287]
[1737885162563,0.60586,3301.6,3301.5,3.2661]
[1737885163060,0.60592,3301.3,3301.1,3.72813]
[1737885163263,0.60592,3301.3,3301.2,3.2661]
[1737885164666,0.60592,3301.3,3301.2,3.87202]
[1737885165265,0.60592,3301.3,3301.2,3.2661]
[1737885165467,0.60592,3301.3,3301.2,3.87202]
[1737885165661,0.60592,3301.3,3301.2,3.2661]
[1737885166562,0.60592,3301.3,3301.2,3.87202]
[1737885167368,0.60592,3301.3,3301.2,3.2661]
[1737885167566,0.60594,3301.1,3301.0,3.2078]
[1737885171064,0.606,3300.8,3300.7,0.91343565]
[1737885176874,3.1985,3301.0,3300.7,0.91343565]
[1737885177071,3.1985,3301.0,3300.9,0.60598]
[1737885177466,3.80448,3301.0,3300.9,40.8]
[1737885177667,3.80448,3301.0,3300.7,7.10973565]
[1737885177668,3.1985,3301.0,3300.7,7.10973565]
[1737885177870,3.1985,3301.0,3300.7,0.91343565]
[1737885177871,0.606,3300.8,3300.7,0.91343565]
[1737885180978,0.606,3300.8,3300.7,4.00543565]
[1737885181678,0.60598,3300.9,3300.8,0.60599]
[1737885181984,3.80447,3301.0,3300.8,0.60599]
[1737885182182,3.80447,3301.0,3300.7,4.91433376]
[1737885182477,3.80447,3301.0,3300.9,0.60598]
[1737885183182,6.0359,3301.3,3300.7,4.91433376]
[1737885183385,3.58814,3301.2,3301.0,0.60595]
[1737885183678,0.606,3300.8,3300.7,1.82233376]
[1737885187072,3.2078,3301.1,3300.7,1.82233376]
[1737885187383,3.2078,3301.1,3300.7,2.42833376]
[1737885187574,3.2078,3301.1,3300.8,3.106]
[1737885187771,0.60598,3300.9,3300.8,6.3636]
[1737885188182,0.60598,3300.9,3300.8,3.106]
[1737885188384,3.2078,3301.1,3300.7,1.82233376]
[1737885188585,10.0044,3300.8,3300.7,1.82233376]
[1737885196286,3.6198,3300.8,3300.7,1.82233376]
[1737885207786,8.6198,3300.8,3300.7,1.82233376]
[1737885208182,3.6198,3300.8,3300.7,1.82233376]
[1737885208587,8.0138,3300.8,3299.1,5.29787607]
[1737885208789,0.60622,3299.7,3299.5,9.79863]
[1737885209589,0.60622,3299.6,3299.5,9.79863]
[1737885210095,0.6062,3299.7,3299.5,9.79863]
[1737885211096,0.60622,3299.6,3299.5,9.79863]
[1737885211394,0.60621,3299.7,3299.5,9.79863]
[1737885211597,0.60622,3299.6,3299.5,9.79863]
[1737885211895,0.00454482,3299.9,3299.5,9.79862]
[1737885212195,0.60622,3299.6,3299.5,9.79862]
[1737885212596,0.00454482,3299.9,3299.5,9.1924]
[1737885212788,0.00454482,3299.9,3299.3,0.00454482]
[1737885212789,2.09007607,3299.6,3299.3,0.00454482]
[1737885213091,0.60626,3299.4,3299.3,0.00454482]
[1737885213297,0.60626,3299.4,3299.3,0.61081482]
[1737885213595,3.2078,3299.7,3299.3,0.00454482]
[1737885213797,0.60623,3299.6,3299.5,0.60623]
[1737885214192,3.81402,3299.7,3299.5,0.60623]
[1737885214391,3.814,3299.7,3299.6,6.4969]
[1737885214992,3.2078,3299.7,3299.6,6.4969]
[1737885215194,3.814,3299.7,3299.6,6.4969]
[1737885217102,0.6062,3299.7,3299.6,6.4969]
[1737885218098,0.60625,3299.4,3299.3,0.00454482]
[1737885220398,0.60625,3299.4,3299.3,0.61081482]
[1737885220590,0.60625,3299.5,3299.4,0.60625]
[1737885221706,0.60625,3299.4,3299.3,0.61080482]
[1737885223299,3.2078,3299.8,3299.3,0.00454482]
[1737885223506,0.60625,3299.5,3299.4,0.60625]
[1737885224196,3.2078,3299.8,3299.3,0.00454482]
[1737885224501,0.6062,3299.7,3299.6,0.60621]
[1737885231104,0.60623,3299.6,3299.3,0.00454482]
[1737885231307,0.60623,3299.6,3299.5,0.60622]
[1737885234094,0.00454482,3299.9,3299.3,0.00454482]
[1737885234298,2.09462089,3299.9,3299.3,0.00454482]
[1737885234513,0.60626,3299.4,3299.3,0.00454482]
[1737885247713,1.5994598,3299.4,3299.3,0.00454482]
[1737885249714,1.5994598,3299.4,3299.3,3.01704482]
[1737885253607,3.2078,3299.5,3299.3,3.62331482]
[1737885253802,0.60626,3299.4,3299.3,3.62331482]
[1737885254013,3.2078,3299.5,3299.4,0.60626]
[1737885254312,7.2499998,3299.8,3299.3,4.01024462]
[1737885254313,0.9931998,3299.8,3299.3,4.01024462]
[1737885254511,0.60621,3299.7,3299.5,0.60623]
[1737885254715,0.9931998,3299.8,3299.6,6.75261]
[1737885254917,1.5993798,3299.8,3299.7,3.1278]
[1737885255720,0.60618,3299.8,3299.7,3.1278]
[1737885262127,0.60626,3299.4,3299.3,6.90021482]
[1737885262325,0.60626,3299.4,3299.3,9.97521482]
[1737885264833,0.60625,3299.5,3299.4,0.60625]
[1737885265233,3.61693093,3299.9,3299.3,9.36894482]
[1737885265434,0.60626,3299.4,3299.3,9.97520482]
[1737885265730,0.60625,3299.5,3299.4,0.60625]
[1737885267335,0.00454482,3299.9,3299.3,10.2782286]
[1737885267634,0.60624,3299.6,3299.5,0.60623]
[1737885268630,0.00454482,3299.9,3299.3,10.2782286]
[1737885268835,0.60621,3299.7,3299.6,0.60621]
[1737885272839,0.00454482,3299.9,3299.6,3.2078]
[1737885273045,0.00454482,3299.9,3299.8,0.60618]
[1737885273433,0.00454482,3299.9,3299.8,7.05068]
[1737885274940,3.2078,3300.8,3299.8,11.4445]
[1737885275240,0.60599,3300.9,3300.8,0.60598]
[1737885275541,0.60598,3300.9,3300.8,6.2274]
[1737885275936,0.60597,3301.0,3300.8,6.83338]
[1737885276137,0.60595,3301.1,3301.0,0.60595]
[1737885276337,0.61047482,3301.2,3300.8,6.2274]
[1737885276538,0.60595,3301.1,3301.0,0.60595]
[1737885276739,0.61047482,3301.2,3301.1,0.60594]
[1737885277044,0.61047482,3301.2,3300.8,6.2274]
[1737885277245,0.61047482,3301.2,3301.0,0.60595]
[1737885278746,0.00454482,3301.2,3301.1,0.60594]
[1737885280546,0.00454482,3301.2,3301.1,3.81374]
[1737885282148,0.00454482,3301.2,3301.1,0.60594]
[1737885291156,0.00454482,3301.2,3301.1,1.51472797]
[1737885293262,0.61046482,3301.2,3301.1,0.90878797]
[1737885294358,0.6061,3300.3,3300.2,0.6061]
[1737885294658,0.60612,3300.2,3300.1,0.60612]
[1737885294855,3.1599,3300.2,3300.1,0.60612]
[1737885299966,0.60613,3300.1,3300.0,0.60613]
[1737885300166,3.64203,3300.1,3300.0,0.60613]
[1737885300666,3.0359,3300.1,3300.0,0.60613]
[1737885301060,0.60616,3299.9,3299.8,3.2078]
[1737885312672,0.60616,3299.9,3299.8,3.81398]
[1737885313680,0.60616,3299.9,3299.8,3.2078]
[1737885314575,0.60625,3299.4,3299.3,0.9138286]
[1737885315679,0.60625,3299.4,3299.3,1.5200986]
[1737885316476,0.60625,3299.4,3299.3,0.9138286]
[1737885316676,3.81405,3299.4,3299.3,0.9138286]
[1737885322389,0.60625,3299.4,3299.3,0.9138286]
[1737885324988,0.60625,3299.4,3299.3,1.5200986]
[1737885325291,0.60625,3299.4,3299.3,0.9138286]
[1737885325491,0.60625,3299.4,3299.3,1.5200986]
[1737885326298,0.60624,3299.6,3299.5,0.60623]
[1737885326497,0.60624,3299.5,3299.4,3.71564]
[1737885327292,0.60624,3299.5,3299.4,3.1094]
[1737885327596,0.60625,3299.4,3299.3,0.9138286]
[1737885327796,3.77325,3299.4,3299.3,0.9138286]
[1737885342808,3.77325,3299.4,3299.3,0.2578786]
[1737885343008,3.77325,3299.4,3298.3,3.0979]
[1737885343009,0.60644,3298.4,3298.3,3.0979]
[1737885343301,1.59933283,3298.4,3298.3,3.0979]
[1737885343908,0.60644,3298.4,3298.3,3.0979]
[1737885344898,3.2078,3298.5,3298.2,0.99289283]
[1737885345101,0.60644,3298.4,3298.3,3.1953]
[1737885346807,3.2078,3298.5,3298.0,3.89065482]
[1737885347006,0.60648,3298.2,3298.1,3.80179]
[1737885347405,0.60648,3298.2,3298.1,3.1953]
[1737885347613,0.60648,3298.2,3298.1,3.80179]
[1737885347808,0.60648,3298.2,3298.1,3.1953]
[1737885348310,0.60648,3298.2,3298.1,3.80179]
[1737885349014,0.60648,3298.2,3298.1,3.1953]
[1737885349914,0.60648,3298.2,3298.1,3.80179]
[1737885351108,0.60648,3298.2,3298.1,3.1953]
[1737885351408,0.60648,3298.2,3298.1,3.80179]
[1737885351608,0.60647,3298.3,3298.2,0.60647]
[1737885351920,0.60647,3298.2,3298.1,3.1953]
[1737885352117,0.60647,3298.2,3298.1,6.4433]
[1737885352509,0.60647,3298.2,3298.1,7.04979]
[1737885352816,0.60647,3298.2,3298.1,6.4433]
[1737885353519,0.60647,3298.2,3298.1,3.1953]
[1737885357610,0.60649,3298.1,3298.0,0.00454482]
[1737885361117,8.81429,3298.1,3298.0,1e-08]
[1737885363409,3.81429,3298.1,3298.0,1e-08]
[1737885363622,4.81629,3298.1,3298.0,1e-08]
[1737885364421,3.81429,3298.1,3298.0,1e-08]
[1737885376633,5.91297803,3298.1,3298.0,1e-08]
[1737885376826,0.60664,3297.3,3297.2,3.1857]
[1737885378827,3.2078,3297.5,3297.2,3.1857]
[1737885379025,3.2078,3297.5,3297.3,0.60663]
[1737885379233,0.60662,3297.4,3297.3,0.60663]
[1737885380137,0.60662,3297.4,3297.2,3.1857]
[1737885380436,9.31978803,3298.0,3297.2,3.1857]
[1737885380634,0.60662,3297.4,3297.3,0.60663]
[1737885382043,9.31978803,3298.0,3297.2,3.1857]
[1737885382241,0.60664,3297.3,3297.2,3.1857]
[1737885389847,0.60664,3297.3,3297.2,3.79236]
[1737885390045,0.60664,3297.3,3297.2,3.1857]
[1737885398254,0.60664,3297.3,3297.2,4.09556291]
[1737885398546,3.66464,3297.9,3297.6,0.60658]
[1737885398746,1.51611,3298.4,3297.7,6.1043]
[1737885398747,6.1518,3298.3,3297.7,6.1043]
[1737885398944,0.60653,3297.9,3297.8,3.174]
[1737885399650,1.6005463,3297.9,3297.8,3.174]
[1737885400048,1.6005463,3297.9,3297.7,6.1043]
[1737885400049,4.2710163,3297.9,3297.7,6.1043]
[1737885400258,0.60655,3297.8,3297.7,6.1043]
[1737885400453,3.76015,3297.8,3297.7,6.1043]
[1737885401455,3.76015,3297.8,3297.7,2.9974]
[1737885404252,3.2078,3298.0,3297.7,2.9974]
[1737885404457,3.2078,3298.0,3297.9,0.60653]
[1737885404853,3.2078,3298.0,3297.9,3.66443]
[1737885405854,3.2078,3298.0,3297.9,3.0579]
[1737885406862,3.81431,3298.0,3297.9,3.0579]
[1737885408167,3.2078,3298.0,3297.9,3.0579]
[1737885408363,3.81431,3298.0,3297.9,3.0579]
[1737885413673,0.60651,3298.0,3297.9,3.0579]
[1737885414267,0.60651,3298.0,3297.9,3.66443]
[1737885414467,0.60651,3298.0,3297.9,3.0579]
[1737885414671,0.60651,3298.0,3297.9,3.66443]
[1737885416576,0.60651,3298.0,3297.9,3.0579]
[1737885420675,0.60651,3298.0,3297.9,3.66443]
[1737885422274,0.60651,3298.0,3297.9,3.0579]
[1737885423772,1.60037709,3298.0,3297.9,3.0579]
[1737885424783,1.60037709,3298.0,3297.9,3.66443]
[1737885424982,1.60037709,3298.0,3297.9,3.0579]
[1737885425781,1.60037709,3298.0,3297.9,3.66443]
[1737885426982,1.60037709,3298.0,3297.9,3.0579]
[1737885427780,1.60037709,3298.0,3297.9,3.66443]
[1737885430891,0.6065,3298.1,3298.0,0.60649]
[1737885431089,0.60651,3298.0,3297.9,3.0579]
[1737885431284,1.60037709,3298.0,3297.9,3.0579]
[1737885431982,4.82467709,3298.0,3297.9,3.0579]
[1737885432379,0.60655,3297.8,3297.7,3.60396]
[1737885433287,0.60655,3297.8,3297.7,2.9974]
[1737885433494,0.6066,3297.5,3297.4,6.5028]
[1737885433688,1.60046709,3297.5,3297.4,6.5028]
[1737885434986,1.60046709,3297.5,3297.3,3.0396]
[1737885434987,0.60664,3297.3,3297.2,0.90986291]
[1737885435192,1.60050709,3297.3,3297.2,0.90986291]
[1737885437088,4.80830709,3297.3,3297.2,0.90986291]
[1737885437286,10.19553418,3297.3,3296.9,0.00454482]
[1737885437489,2.59443418,3297.0,3296.9,0.00454482]
[1737885437693,1.60056709,3297.0,3296.9,0.00454482]
[1737885437888,2.59443418,3297.0,3296.9,0.00454482]
[1737885438588,0.60682,3296.3,3296.2,3.2438]
[1737885438789,0.99386709,3296.3,3295.8,45.00166709]
[1737885439191,0.99386709,3296.3,3296.0,0.99386709]
[1737885439498,0.60684,3296.3,3296.1,0.60686]
[1737885439694,0.00454482,3296.5,3296.0,0.60688]
[1737885439895,0.00454482,3296.5,3296.3,0.60682]
[1737885440091,0.00454482,3296.5,3296.4,6.3361]
[1737885440297,0.00454482,3296.5,3296.4,6.94291]
[1737885440492,0.00454482,3296.5,3296.4,6.3361]
[1737885441494,0.00454482,3296.5,3296.4,6.94291]
[1737885441899,0.00454482,3296.5,3296.4,6.3361]
[1737885442297,0.61133482,3296.5,3296.4,6.3361]
[1737885442804,0.00454482,3296.5,3296.4,6.94291]
[1737885443402,0.00454482,3296.5,3296.4,6.3361]
[1737885443403,0.61133482,3296.5,3296.4,6.3361]
[1737885444000,0.61133482,3296.5,3296.4,6.94291]
[1737885444198,0.00454482,3296.5,3296.4,6.94291]
[1737885444796,0.00454482,3296.5,3296.4,10.15071]
[1737885447206,1.0,3297.4,3296.4,14.5439]
[1737885447406,1.0,3297.4,3297.3,0.60664]
[1737885447407,0.60662,3297.4,3297.3,0.60664]
[1737885447704,3.2078,3297.5,3297.4,0.60662]
[1737885449502,0.61110482,3297.8,3297.7,0.60657]
[1737885450398,0.00454482,3297.8,3297.7,0.60657]
[1737885451204,0.00454482,3297.8,3297.4,3.3055]
[1737885451406,2.10567257,3297.8,3297.0,3.0798]
[1737885451610,0.60665,3297.3,3297.1,3.91217]
[1737885451804,0.60666,3297.2,3297.1,3.91217]
[1737885452607,3.1374,3297.6,3297.1,3.3055]
[1737885452805,0.60662,3297.5,3297.3,0.60663]
[1737885453310,0.6066,3297.5,3297.4,0.60661]
[1737885453506,0.00454482,3297.8,3297.4,0.60661]
[1737885453696,0.60659,3297.6,3297.4,0.60661]
[1737885453905,0.00454482,3297.8,3297.1,6.4583]
[1737885453906,0.60663,3297.4,3297.2,0.60665]
[1737885454807,0.60663,3297.4,3297.3,0.60664]
[1737885456511,0.60658,3297.6,3297.5,0.6066]
[1737885456806,3.21234482,3297.8,3297.7,0.60657]
[1737885458916,0.00454482,3297.8,3297.7,0.60657]
[1737885461414,0.00454482,3297.8,3297.7,1.51629495]
[1737885465015,0.00454482,3297.8,3297.7,4.77169495]
[1737885473123,1e-08,3297.8,3297.7,4.77169495]
[1737885474025,1e-08,3297.8,3297.7,9.77169495]
[1737885474233,1e-08,3297.8,3297.7,4.77169495]
[1737885474522,1e-08,3297.8,3297.7,9.77169495]
[1737885476225,1e-08,3297.8,3297.7,12.97949495]
[1737885476522,1e-08,3297.8,3297.7,16.27229495]
[1737885479730,1e-08,3297.8,3297.7,11.27229495]
[1737885481235,1e-08,3297.8,3297.7,16.27229495]
[1737885486441,1.9218,3298.5,3298.4,0.60644]
[1737885486640,1.9218,3298.5,3298.4,2.70756775]
[1737885490729,3.075,3298.6,3298.5,0.60642]
[1737885490935,0.00454482,3298.8,3298.7,0.60638]
[1737885491136,0.00454482,3298.8,3298.7,2.70750775]
[1737885492834,1e-08,3298.8,3298.7,7.70750775]
[1737885493041,6.7304,3299.8,3299.7,0.6062]
[1737885493542,3.5226,3299.8,3299.7,0.6062]